fUST/lending_fUST_20250926
["ID","MTS","AMOUNT","RATE_DAILY","PERIOD"]
[387762771,1758838262722,-3805.61,0.00024539,2]
[387762772,1758838262732,-480.0,0.00024539,2]
[387762773,1758838262742,-819.71,0.00024539,2]
[387762774,1758838262751,-480.0,0.0002454,2]
[387762775,1758838262761,-480.0,0.0002454,2]
[387762776,1758838262770,-480.0,0.0002454,2]
[387762777,1758838262780,-537.83,0.0002454,2]
[387762778,1758838262790,-1097.49,0.0002454,2]
[387762779,1758838262800,-574.87,0.0002454,2]
[387762780,1758838262809,-480.0,0.0002454,2]
[387762781,1758838262819,-746.0,0.0002454,2]
[387762782,1758838262828,-1188.66,0.0002454,2]
[387762783,1758838262838,-480.0,0.0002454,2]
[387762784,1758838262847,-1267.22,0.0002454,2]
[387762785,1758838262856,-631.04,0.0002454,2]
[387762786,1758838262867,-521.69,0.0002454,2]
[387762787,1758838262876,-841.54,0.0002454,2]
[387762788,1758838262885,-2281.18,0.0002454,2]
[387762789,1758838262895,-480.0,0.0002454,2]
[387762790,1758838262904,-1278.54,0.0002454,2]
[387762791,1758838262914,-660.24,0.0002454,2]
[387762792,1758838262924,-566.86,0.0002454,2]
[387762793,1758838262933,-482.45,0.0002454,2]
[387762794,1758838262942,-811.64,0.0002454,2]
[387762795,1758838262952,-1124.2,0.0002454,2]
[387762796,1758838262962,-1879.63,0.0002454,2]
[387762797,1758838262971,-326.35370153,0.0002454,2]
[387762798,1758838262980,-1002.7,0.00024541,2]
[387762799,1758838262990,-480.0,0.00024547,2]
[387762800,1758838263000,-3674.97,0.00024547,2]
[387762801,1758838263010,-722.93,0.00024547,2]
[387762802,1758838263019,-1532.43,0.00024547,2]
[387762803,1758838263030,-480.0,0.00024548,2]
[387762804,1758838263039,-912.02,0.00024548,2]
[387762805,1758838263049,-840.21,0.00024548,2]
[387762806,1758838263058,-1277.34,0.00024549,2]
[387762807,1758838263068,-112164.0250814,0.0002465,2]
[387762808,1758838263078,-380.0,0.00024658,2]
[387762809,1758838263087,-151.0,0.00024658,7]
[387762810,1758838263098,-500.0,0.00024658,2]
[387762811,1758838263108,-500.0,0.00024669,2]
[387762812,1758838263118,-160.0,0.000247,7]
[387762813,1758838263128,-160.0,0.000247,7]
[387762814,1758838263138,-160.0,0.000247,7]
[387762815,1758838263148,-819.993,0.00024719,7]
[387762816,1758838263158,-2988.91285334,0.00024798,2]
[387762817,1758838263167,-1737.41724512,0.000248,4]
[387762818,1758838263178,-952.0,0.000248,2]
[387762819,1758838263188,-45147.0564062,0.000248,2]
[387762820,1758838263198,-518.13,0.00024813,2]
[387762821,1758838263207,-995.98,0.00024813,2]
[387762822,1758838263217,-2557.87,0.00024813,2]
[387762823,1758838263227,-3805.61,0.00024813,2]
[387762824,1758838263237,-480.0,0.00024813,2]
[387762825,1758838263247,-480.0,0.00024814,2]
[387762826,1758838263256,-480.0,0.00024814,2]
[387762827,1758838263266,-375.48616574,0.00024814,2]
[387762828,1758838263275,-537.83,0.00024814,2]
[387762829,1758838263285,-1097.49,0.00024814,2]
[387762830,1758838263295,-574.87,0.00024814,2]
[387762831,1758838263304,-315.0,0.00024814,2]
[387762832,1758838263380,-746.0,0.00024814,2]
[387762833,1758838263391,-1188.66,0.00024814,2]
[387762834,1758838263401,-480.0,0.00024814,2]
[387762835,1758838263411,-1267.22,0.00024814,2]
[387762836,1758838263421,-631.04,0.00024814,2]
[387762837,1758838263431,-521.69,0.00024814,2]
[387762838,1758838263441,-841.54,0.00024814,2]
[387762839,1758838263451,-2281.18,0.00024814,2]
[387762840,1758838263462,-480.0,0.00024814,2]
[387762841,1758838263471,-1278.54,0.00024814,2]
[387762842,1758838263481,-660.24,0.00024814,2]
[387762843,1758838263492,-566.86,0.00024814,2]
[387762844,1758838263502,-482.45,0.00024814,2]
[387762845,1758838263513,-811.64,0.00024814,2]
[387762846,1758838263524,-1124.2,0.00024814,2]
[387762847,1758838263535,-1879.63,0.00024814,2]
[387762848,1758838263546,-1002.7,0.00024815,2]
[387762849,1758838263558,-480.0,0.00024821,2]
[387762850,1758838263568,-3674.97,0.00024821,2]
[387762851,1758838263578,-722.93,0.00024821,2]
[387762852,1758838263593,-1532.43,0.00024821,2]
[387762853,1758838263604,-400.19,0.00024822,2]
[387762854,1758838263616,-912.02,0.00024822,2]
[387762855,1758838263627,-840.21,0.00024822,2]
[387762856,1758838263637,-1277.34,0.00024823,2]
[387762857,1758838263647,-800.0,0.00024828,2]
[387762858,1758838263656,-500.0,0.00024865,2]
[387762859,1758838263667,-300.0,0.00024873,2]
[387762860,1758838263678,-151.99741599,0.00024873,2]
[387762861,1758838263688,-191896.95827902,0.00024898,2]
[387762862,1758838263698,-19223.213024,0.00024898,2]
[387762863,1758838263707,-250.0,0.000249,2]
[387762864,1758838263717,-250.0,0.000249,2]
[387762865,1758838263727,-250.0,0.000249,2]
[387762866,1758838263736,-250.0,0.000249,2]
[387762867,1758838263746,-250.0,0.000249,2]
[387762868,1758838263756,-152.9,0.000249,2]
[387762869,1758838263765,-160.0,0.000249,7]
[387762870,1758838263776,-407962.272217,0.000249,2]
[387762871,1758838263785,-500.0,0.00024913,2]
[387762872,1758838263795,-500.0,0.00024932,2]
[387762873,1758838263804,-417.15472785,0.00025,10]
[387762874,1758838263814,-417.15472785,0.00025,10]
[387762875,1758838263823,-960.0,0.0002503,2]
[387762876,1758838263833,-500.0,0.00025038,7]
[387762877,1758838263843,-500.0,0.00025063,7]
[387762878,1758838263853,-1500.0,0.00025086,2]
[387762879,1758838263863,-518.13,0.00025087,2]
[387762880,1758838263873,-995.98,0.00025087,2]
[387762881,1758838263883,-2557.87,0.00025087,2]
[387762882,1758838263893,-3805.61,0.00025087,2]
[387762883,1758838263903,-480.0,0.00025087,2]
[387762884,1758838263913,-535.8959319,0.00025088,2]
[387762885,1758838263922,-480.0,0.00025088,2]
[387762886,1758838263932,-537.83,0.00025088,2]
[387762887,1758838263942,-1097.49,0.00025088,2]
[387762888,1758838263952,-574.87,0.00025088,2]
[387762889,1758838263962,-746.0,0.00025088,2]
[387762890,1758838263972,-1188.66,0.00025088,2]
[387762891,1758838263982,-480.0,0.00025088,2]
[387762892,1758838263992,-1267.22,0.00025088,2]
[387762893,1758838264002,-631.04,0.00025088,2]
[387762894,1758838264012,-521.69,0.00025088,2]
[387762895,1758838264021,-841.54,0.00025088,2]
[387762896,1758838264031,-2281.18,0.00025088,2]
[387762897,1758838264040,-313.80316451,0.00025088,2]
[387762898,1758838264050,-1278.54,0.00025088,2]
[387762899,1758838264060,-660.24,0.00025088,2]
[387762900,1758838264070,-566.86,0.00025088,2]
[387762901,1758838264080,-482.45,0.00025088,2]
[387762902,1758838264090,-811.64,0.00025088,2]
[387762903,1758838264100,-1124.2,0.00025088,2]
[387762904,1758838264110,-1879.63,0.00025088,2]
[387762905,1758838264122,-1002.7,0.00025089,2]
[387762906,1758838264133,-582.51120043,0.00025095,2]
[387762907,1758838264143,-3674.97,0.00025095,2]
[387762908,1758838264153,-722.93,0.00025095,2]
[387762909,1758838264163,-1532.43,0.00025095,2]
[387762910,1758838264173,-912.02,0.00025096,2]
[387762911,1758838264183,-840.21,0.00025096,2]
[387762912,1758838264193,-1277.34,0.00025097,2]
[387762913,1758838264203,-2765.27348084,0.0002516,2]
[387762914,1758838264216,-500.0,0.00025206,2]
[387762915,1758838264226,-208603.0,0.00025222,2]
[387762916,1758838264235,-500.0,0.00025226,7]
[387762917,1758838264245,-2949.90918836,0.00025259,3]
[387762918,1758838264255,-161.01880546,0.00025273,2]
[387762919,1758838264269,-518.13,0.00025361,2]
[387762920,1758838264279,-995.98,0.00025361,2]
[387762921,1758838264288,-2557.87,0.00025361,2]
[387762922,1758838264298,-3805.61,0.00025361,2]
[387762923,1758838264308,-372.04027623,0.00025361,2]
[387762924,1758838264317,-480.0,0.00025362,2]
[387762925,1758838264327,-537.83,0.00025362,2]
[387762926,1758838264337,-1097.49,0.00025362,2]
[387762927,1758838264347,-574.87,0.00025362,2]
[387762928,1758838264356,-746.0,0.00025362,2]
[387762929,1758838264368,-1188.66,0.00025362,2]
[387762930,1758838264377,-170.86194685,0.00025362,2]
[387762931,1758838264441,-1267.22,0.00025362,2]
[387762932,1758838264451,-631.04,0.00025362,2]
[387762933,1758838264459,-521.69,0.00025362,2]
[387762934,1758838264467,-841.54,0.00025362,2]
[387762935,1758838264476,-2281.18,0.00025362,2]
[387762936,1758838264485,-1278.54,0.00025362,2]
[387762937,1758838264495,-660.24,0.00025362,2]
[387762938,1758838264504,-566.86,0.00025362,2]
[387762939,1758838264513,-482.45,0.00025362,2]
[387762940,1758838264521,-811.64,0.00025362,2]
[387762941,1758838264531,-1124.2,0.00025362,2]
[387762942,1758838264540,-1879.63,0.00025362,2]
[387762943,1758838264550,-1002.7,0.00025363,2]
[387762944,1758838264559,-3674.97,0.00025369,2]
[387762945,1758838264569,-722.93,0.00025369,2]
[387762946,1758838264579,-1532.43,0.00025369,2]
[387762947,1758838264592,-912.02,0.0002537,2]
[387762948,1758838264601,-840.21,0.0002537,2]
[387762949,1758838264611,-1277.34,0.00025371,2]
[387762950,1758838264621,-1664.38,0.000254,2]
[387762951,1758838264631,-1042.72,0.00025475,2]
[387762952,1758838264643,-464.0,0.0002548,2]
[387762953,1758838264652,-1060.0,0.00025578,2]
[387762954,1758838264663,-2000.0,0.00025634,2]
[387762955,1758838264673,-518.35789431,0.00025635,2]
[387762956,1758838264681,-996.05764489,0.00025635,2]
[387762957,1758838264691,-2558.08454534,0.00025635,2]
[387762958,1758838264700,-3805.7373,0.00025635,2]
[387762959,1758838264709,-1002.91770538,0.00025636,2]
[387762960,1758838264719,-232.15888052,0.00025636,2]
[387762961,1758838264728,-537.91710228,0.00025636,2]
[387762962,1758838264739,-1097.62586895,0.00025636,2]
[387762963,1758838264749,-575.04465141,0.00025636,2]
[387762964,1758838264759,-746.01900681,0.00025636,2]
[387762965,1758838264769,-1188.6919948,0.00025636,2]
[387762966,1758838264780,-1267.30633806,0.00025636,2]
[387762967,1758838264790,-631.17,0.00025636,2]
[387762968,1758838264800,-521.72,0.00025636,2]
[387762969,1758838264810,-841.63783123,0.00025636,2]
[387762970,1758838264819,-2281.20652603,0.00025636,2]
[387762971,1758838264828,-1278.60766446,0.00025636,2]
[387762972,1758838264838,-660.4,0.00025636,2]
[387762973,1758838264848,-567.03808091,0.00025636,2]
[387762974,1758838264858,-482.60590608,0.00025636,2]
[387762975,1758838264868,-811.6661337,0.00025636,2]
[387762976,1758838264876,-1124.37316057,0.00025636,2]
[387762977,1758838264884,-1879.85397118,0.00025636,2]
[387762978,1758838264892,-3675.19343231,0.00025643,2]
[387762979,1758838264899,-723.06,0.00025643,2]
[387762980,1758838264906,-1532.56214878,0.00025643,2]
[387762981,1758838264913,-912.19776801,0.00025644,2]
[387762982,1758838264920,-840.40083276,0.00025644,2]
[387762983,1758838264927,-1277.47,0.00025645,2]
[387762984,1758838264936,-4722.0,0.00025796,2]
[387762985,1758838264946,-211.049101,0.00025873,2]
[387762986,1758838264955,-1573.28202985,0.00026,10]
[387762987,1758838264965,-4000.0,0.00026014,4]
[387762988,1758838264975,-680.0,0.00026126,2]
[387762989,1758838264984,-513.3576406,0.00026182,2]
[387762990,1758838264993,-1000000.0,0.0002622,2]
[387762991,1758838265003,-500.0,0.00026257,7]
[387762992,1758838265013,-150.0,0.00026273,2]
[387762993,1758838265022,-2949.90918836,0.00026331,5]
[387762994,1758838265032,-500.0,0.00026391,7]
[387762995,1758838265042,-500.0,0.00026476,7]
[387762996,1758838265051,-1251.27,0.00026494,2]
[387762997,1758838265060,-978.0,0.0002666,2]
[387762998,1758838265070,-635.0,0.0002666,2]
[387762999,1758838265079,-2160.0,0.0002666,2]
[387763000,1758838265089,-5000.0,0.00026707,2]
[387763001,1758838265098,-300.0,0.00026821,2]
[387763002,1758838265108,-500.0,0.00026823,7]
[387763003,1758838265119,-500.0,0.00026865,7]
[387763004,1758838265130,-406.84464171,0.00026939,2]
[387763005,1758838265139,-2217.28869963,0.00027,5]
[387763006,1758838265149,-500.0,0.00027056,7]
[387763007,1758838265158,-153.55,0.00027095,7]
[387763008,1758838265168,-500.0,0.00027151,7]
[387763009,1758838265178,-154.25,0.00027159,7]
[387763010,1758838265187,-269.0,0.00027178,23]
[387763011,1758838265196,-1000000.0,0.0002722,2]
[387763012,1758838265206,-154.25,0.00027259,7]
[387763013,1758838265215,-500.0,0.000273,7]
[387763014,1758838265225,-1664.38,0.000273,2]
[387763015,1758838265234,-500.0,0.00027304,7]
[387763016,1758838265243,-154.25,0.00027359,7]
[387763017,1758838265252,-450.0,0.00027368,2]
[387763018,1758838265261,-1000.0,0.00027397,2]
[387763019,1758838265272,-150.0,0.00027397,5]
[387763020,1758838265281,-2949.90918836,0.00027403,7]
[387763021,1758838265290,-154.25,0.00027418,15]
[387763022,1758838265349,-500.0,0.00027433,7]
[387763023,1758838265359,-154.25,0.00027459,15]
[387763024,1758838265370,-500.0,0.000275,7]
[387763025,1758838265387,-27148.33722041,0.000275,2]
[387763026,1758838265396,-1459.81,0.00027513,2]
[387763027,1758838265406,-154.25,0.00027518,15]
[387763028,1758838265415,-1000.0,0.00027534,2]
[387763029,1758838265424,-154.25,0.00027559,15]
[387763030,1758838265434,-154.25,0.00027618,15]
[387763031,1758838265443,-154.25,0.00027659,15]
[387763032,1758838265453,-1000.0,0.00027671,2]
[387763033,1758838265463,-500.0,0.00027756,7]
[387763034,1758838265472,-154.25,0.00027759,15]
[387763035,1758838265482,-957.51638402,0.00027808,2]
[387763036,1758838265491,-425.59890595,0.000279,2]
[387763037,1758838265501,-425.59890591,0.000279,2]
[387763038,1758838265511,-425.59890591,0.000279,2]
[387763039,1758838265520,-425.59890591,0.000279,2]
[387763040,1758838265530,-425.59890591,0.000279,2]
[387763041,1758838265539,-425.59890591,0.000279,2]
[387763042,1758838265549,-425.59890591,0.000279,2]
[387763043,1758838265558,-600.0,0.00027916,5]
[387763044,1758838265568,-250.0,0.00027945,5]
[387763045,1758838265578,-1200.65443132,0.00028,2]
[387763046,1758838265591,-202.09049916,0.00028,2]
[387763047,1758838265600,-160.0,0.00028,10]
[387763048,1758838265610,-233.66602051,0.00028,7]
[387763049,1758838265622,-417.15472785,0.00028,7]
[387763050,1758838265634,-1078.71,0.00028,2]
[387763051,1758838265644,-425.59890591,0.00028032,2]
[387763052,1758838265654,-211.049101,0.00028087,2]
[387763053,1758838265665,-500.0,0.00028117,7]
[387763054,1758838265675,-1078.71,0.0002814,2]
[387763055,1758838265684,-357.99,0.00028219,14]
[387763056,1758838265694,-479995.45765451,0.0002822,2]
[387763057,1758838265704,-154.25,0.00028267,15]
[387763058,1758838265714,-1078.71,0.0002828,2]
[387763059,1758838265723,-500.0,0.00028363,7]
[387763060,1758838265733,-154.25,0.00028367,15]
[387763061,1758838265742,-500.0,0.00028401,7]
[387763062,1758838265752,-1078.71,0.0002842,2]
[387763063,1758838265762,-300.81962974,0.00028464,5]
[387763064,1758838265772,-154.25,0.00028467,15]
[387763065,1758838265784,-2949.90918836,0.00028475,9]
[387763066,1758838265803,-350.0,0.00028493,5]
[387763067,1758838265819,-1596.24929679,0.000285,7]
[387763068,1758838265838,-1668.36,0.00028533,2]
[387763069,1758838265856,-500.0,0.00028533,7]
[387763070,1758838265874,-1078.71,0.0002856,2]
[387763071,1758838265893,-154.25,0.00028567,15]
[387763072,1758838265908,-154.25,0.00028667,15]
[387763073,1758838265924,-425.59890591,0.00028701,2]
[387763074,1758838265943,-154.25,0.00028767,15]
[387763075,1758838265964,-169.03382967,0.000288,7]
[387763076,1758838265976,-154.25,0.00028867,15]
[387763077,1758838265996,-1664.38,0.000289,2]
[387763078,1758838266011,-357.99,0.00028904,15]
[387763079,1758838266026,-154.25,0.00028967,15]
[387763080,1758838266041,-76311.59429297,0.00028989,2]
[387763081,1758838266054,-878.9738737,0.00029,2]
[387763082,1758838266069,-209.0,0.00029,2]
[387763083,1758838266082,-233.66602051,0.00029,10]
[387763084,1758838266097,-233.66602051,0.00029,10]
[387763085,1758838266112,-233.66602051,0.00029,3]
[387763086,1758838266127,-160.0,0.00029,10]
[387763087,1758838266141,-450.0,0.00029041,5]
[387763088,1758838266156,-154.39060003,0.00029067,15]
[387763089,1758838266170,-1508.49882137,0.0002911,2]
[387763090,1758838266184,-581634.88186807,0.0002922,2]
[387763091,1758838266493,-480.0,0.00019608,2]
[387763092,1758838266503,-480.0,0.00019882,2]
[387763093,1758838266513,-639.0,0.00019967,2]
[387763094,1758838266523,-480.0,0.00020156,2]
[387763095,1758838266533,-480.0,0.0002043,2]
[387763096,1758838266542,-480.0,0.00020704,2]
[387763097,1758838266553,-480.0,0.00020978,2]
[387763098,1758838266562,-480.0,0.00021252,2]
[387763099,1758838266572,-480.0,0.00021526,2]
[387763100,1758838266585,-819.71,0.00024813,2]
[387763101,1758838266595,-819.71,0.00025087,2]
[387763102,1758838266605,-819.71,0.00025361,2]
[387763103,1758838266615,-819.8849381,0.00025635,2]
[387763104,1758838266626,-12736.2680119,0.0002922,2]
[387763105,1758838266677,-86599.85012003,0.0002922,2]
[387763106,1758838266687,-500.0,0.00029277,7]
[387763107,1758838266696,-425.59890591,0.0002937,2]
[387763108,1758838266706,-85789.43565521,0.0002944,2]
[387763109,1758838266889,2984.18,0.00023989,10]
[387763110,1758838268700,150.0,0.00024,10]
[387763129,1758838852197,200.0,0.00030046,60]
[387763193,1758839285234,-157.68098216,0.0001909,2]
[387763202,1758839324082,20812.65349452,0.00019063,7]
[387763225,1758839432365,-171.28,0.00019329,2]
[387763226,1758839432375,-1200.0,0.00019329,2]
[387763228,1758839432385,-300.0,0.0001933,2]
[387763230,1758839432394,-300.0,0.0001933,2]
[387763232,1758839432404,-300.0,0.0001933,2]
[387763234,1758839432413,-278.0,0.0001933,2]
[387763236,1758839432422,-300.0,0.0001933,2]
[387763238,1758839432431,-500.0,0.00019331,2]
[387763240,1758839432440,-500.0,0.00019331,2]
[387763242,1758839432450,-500.0,0.00019331,2]
[387763244,1758839432459,-228.95435953,0.00019331,2]
[387763246,1758839432468,-369.05219541,0.00019331,2]
[387763248,1758839432477,-500.0,0.00019331,2]
[387763250,1758839432487,-192.11605413,0.00019331,2]
[387763252,1758839432496,-500.0,0.00019331,2]
[387763254,1758839432505,-500.0,0.00019331,2]
[387763256,1758839432514,-500.0,0.00019331,2]
[387763258,1758839432524,-500.0,0.00019331,2]
[387763260,1758839432533,-500.0,0.00019331,2]
[387763262,1758839432542,-500.0,0.00019331,2]
[387763264,1758839432551,-220.25281223,0.00019331,2]
[387763266,1758839432560,-500.0,0.00019331,2]
[387763268,1758839432570,-500.0,0.00019331,2]
[387763270,1758839432579,-530.93,0.00019331,2]
[387763272,1758839432588,-480.0,0.00019331,2]
[387763275,1758839432598,-511.32,0.00019331,2]
[387763277,1758839432607,-480.0,0.00019332,2]
[387763279,1758839432617,-480.0,0.00019332,2]
[387763281,1758839432626,-480.0,0.00019332,2]
[387763283,1758839432635,-480.0,0.00019332,2]
[387763285,1758839432644,-480.0,0.00019332,2]
[387763287,1758839432654,-480.0,0.00019332,2]
[387763288,1758839432663,-480.0,0.00019332,2]
[387763290,1758839432672,-480.0,0.00019332,2]
[387763292,1758839432681,-480.0,0.00019332,2]
[387763295,1758839432691,-480.0,0.00019332,2]
[387763297,1758839432700,-480.0,0.00019332,2]
[387763298,1758839432709,-480.0,0.00019332,2]
[387763301,1758839432719,-480.0,0.00019332,2]
[387763303,1758839432728,-480.0,0.00019332,2]
[387763305,1758839432737,-480.0,0.00019332,2]
[387763307,1758839432746,-480.0,0.00019332,2]
[387763308,1758839432756,-480.0,0.00019332,2]
[387763310,1758839432764,-480.0,0.00019332,2]
[387763313,1758839432775,-480.0,0.00019332,2]
[387763315,1758839432784,-480.0,0.00019332,2]
[387763316,1758839432793,-480.0,0.00019332,2]
[387763318,1758839432802,-480.0,0.00019332,2]
[387763319,1758839432811,-480.0,0.00019332,2]
[387763321,1758839432821,-480.0,0.00019332,2]
[387763324,1758839432831,-480.0,0.00019332,2]
[387763325,1758839432840,-480.0,0.00019332,2]
[387763328,1758839432850,-480.0,0.00019332,2]
[387763329,1758839432862,-480.0,0.00019332,2]
[387763331,1758839432871,-480.0,0.00019332,2]
[387763334,1758839432882,-480.0,0.00019332,2]
[387763335,1758839432891,-480.0,0.00019332,2]
[387763347,1758839432997,-480.0,0.00019332,2]
[387763350,1758839433007,-480.0,0.00019332,2]
[387763352,1758839433017,-480.0,0.00019332,2]
[387763354,1758839433027,-480.0,0.00019332,2]
[387763356,1758839433036,-480.0,0.00019332,2]
[387763358,1758839433045,-480.0,0.00019332,2]
[387763360,1758839433055,-184.58070845,0.00019332,2]
[387763362,1758839433064,-480.0,0.00019332,2]
[387763364,1758839433074,-480.0,0.00019332,2]
[387763365,1758839433083,-480.0,0.00019332,2]
[387763368,1758839433093,-480.0,0.00019332,2]
[387763370,1758839433103,-480.0,0.00019332,2]
[387763371,1758839433113,-480.0,0.00019332,2]
[387763374,1758839433123,-480.0,0.00019332,2]
[387763376,1758839433132,-500.0,0.00019332,2]
[387763377,1758839433142,-480.0,0.00019332,2]
[387763380,1758839433151,-480.0,0.00019332,2]
[387763381,1758839433161,-480.0,0.00019332,2]
[387763383,1758839433171,-296.37451544,0.00019332,2]
[387763385,1758839433180,-480.0,0.00019332,2]
[387763387,1758839433190,-480.0,0.00019332,2]
[387763389,1758839433199,-372.0365197,0.00019332,2]
[387763391,1758839433209,-480.0,0.00019333,2]
[387763394,1758839433219,-220.05858827,0.00019333,2]
[387763396,1758839433228,-480.0,0.00019333,2]
[387763397,1758839433238,-480.0,0.00019333,2]
[387763398,1758839433247,-480.0,0.00019333,2]
[387763399,1758839433256,-480.0,0.00019333,2]
[387763400,1758839433265,-480.0,0.00019333,2]
[387763401,1758839433274,-480.0,0.00019333,2]
[387763402,1758839433283,-480.0,0.00019333,2]
[387763403,1758839433292,-480.0,0.00019333,2]
[387763404,1758839433301,-481.49521288,0.00019333,2]
[387763405,1758839433313,-480.0,0.00019333,2]
[387763406,1758839433323,-579.33245235,0.00019333,2]
[387763407,1758839433332,-480.0,0.00019333,2]
[387763408,1758839433342,-480.0,0.00019333,2]
[387763409,1758839433355,-480.0,0.00019333,2]
[387763410,1758839433364,-480.0,0.00019333,2]
[387763411,1758839433373,-480.0,0.00019333,2]
[387763412,1758839433383,-480.0,0.00019333,2]
[387763413,1758839433392,-480.0,0.00019333,2]
[387763414,1758839433401,-480.0,0.00019333,2]
[387763415,1758839433410,-480.0,0.00019333,2]
[387763416,1758839433420,-480.0,0.00019333,2]
[387763417,1758839433430,-480.0,0.00019333,2]
[387763418,1758839433438,-453.96743086,0.00019333,2]
[387763419,1758839433448,-480.0,0.00019333,2]
[387763420,1758839433457,-480.0,0.00019333,2]
[387763421,1758839433466,-480.0,0.00019333,2]
[387763423,1758839433475,-502.27935879,0.00019333,2]
[387763425,1758839433485,-480.0,0.00019333,2]
[387763427,1758839433495,-480.0,0.00019333,2]
[387763428,1758839433504,-534.59474364,0.00019333,2]
[387763429,1758839433514,-480.0,0.00019333,2]
[387763430,1758839433523,-480.0,0.00019333,2]
[387763431,1758839433533,-480.0,0.00019333,2]
[387763432,1758839433543,-480.0,0.00019333,2]
[387763433,1758839433552,-480.0,0.00019333,2]
[387763434,1758839433562,-492.72663369,0.00019333,2]
[387763435,1758839433572,-480.0,0.00019333,2]
[387763436,1758839433582,-480.0,0.00019333,2]
[387763437,1758839433593,-480.0,0.00019333,2]
[387763438,1758839433603,-480.0,0.00019333,2]
[387763439,1758839433612,-480.0,0.00019333,2]
[387763440,1758839433622,-480.0,0.00019333,2]
[387763441,1758839433632,-480.0,0.00019333,2]
[387763442,1758839433642,-480.0,0.00019333,2]
[387763443,1758839433652,-480.0,0.00019333,2]
[387763444,1758839433662,-480.0,0.00019333,2]
[387763445,1758839433671,-480.0,0.00019333,2]
[387763446,1758839433681,-480.0,0.00019333,2]
[387763447,1758839433691,-480.0,0.00019333,2]
[387763448,1758839433701,-480.0,0.00019333,2]
[387763449,1758839433710,-480.0,0.00019333,2]
[387763450,1758839433720,-1000.0,0.00019333,2]
[387763451,1758839433730,-480.0,0.00019333,2]
[387763452,1758839433740,-480.0,0.00019333,2]
[387763453,1758839433750,-480.0,0.00019333,2]
[387763454,1758839433760,-480.0,0.00019333,2]
[387763455,1758839433771,-480.0,0.00019333,2]
[387763456,1758839433781,-546.87562349,0.00019333,2]
[387763457,1758839433791,-480.0,0.00019333,2]
[387763458,1758839433801,-500.0,0.00019333,2]
[387763459,1758839433810,-480.0,0.00019333,2]
[387763460,1758839433821,-480.0,0.00019333,2]
[387763461,1758839433830,-480.0,0.00019333,2]
[387763462,1758839433840,-480.0,0.00019333,2]
[387763463,1758839433850,-440.85928387,0.00019333,2]
[387763464,1758839433863,-480.0,0.00019333,2]
[387763465,1758839433873,-480.0,0.00019333,2]
[387763466,1758839433882,-491.61909584,0.00019333,2]
[387763467,1758839433892,-480.0,0.00019333,2]
[387763468,1758839433902,-480.0,0.00019333,2]
[387763469,1758839433912,-480.0,0.00019333,2]
[387763470,1758839433921,-489.79504717,0.00019333,2]
[387763471,1758839433931,-513.53684491,0.00019333,2]
[387763472,1758839433942,-480.0,0.00019333,2]
[387763473,1758839433952,-480.0,0.00019333,2]
[387763474,1758839433962,-340.80285686,0.00019333,2]